[Event "Live Chess"]
[Site "Chess.com"]
[Date "2023.05.21"]
[Round "-"]
[White "AMCWAML"]
[Black "gmnorfolk"]
[Result "0-1"]
[WhiteElo "2313"]
[BlackElo "2141"]
[TimeControl "300"]
[EndTime "5:39:28 PDT"]
[Termination "gmnorfolk won by checkmate"]

1. c4 {[%clk 0:04:58.4]} 1... e5 {[%clk 0:04:58.5]} 2. g3 {[%clk 0:04:58.1]}
2... Nf6 {[%clk 0:04:57.3]} 3. Nc3 {[%clk 0:04:57.3]} 3... c6 {[%clk 0:04:52.9]}
4. d4 {[%clk 0:04:54.8]} 4... e4 {[%clk 0:04:50.4]} 5. Bg2 {[%clk 0:04:42.2]}
5... d5 {[%clk 0:04:48.9]} 6. a3 {[%clk 0:04:37.6]} 6... h6 {[%clk 0:04:42.7]}
7. h4 {[%clk 0:04:30]} 7... Be7 {[%clk 0:04:41.4]} 8. Nh3 {[%clk 0:04:28.5]}
8... Nbd7 {[%clk 0:04:37.2]} 9. cxd5 {[%clk 0:04:20.4]} 9... cxd5 {[%clk
0:04:35.6]} 10. Nf4 {[%clk 0:04:18.2]} 10... Nb6 {[%clk 0:04:34.8]} 11. Bd2
{[%clk 0:04:12.3]} 11... O-O {[%clk 0:04:29]} 12. Rc1 {[%clk 0:03:59.2]} 12...
Nc4 {[%clk 0:04:27.6]} 13. Qb3 {[%clk 0:03:46.3]} 13... Nxd2 {[%clk 0:03:40.6]}
14. Kxd2 {[%clk 0:03:44.5]} 14... Be6 {[%clk 0:03:35.6]} 15. Rhd1 {[%clk
0:03:17.8]} 15... Bd6 {[%clk 0:03:27.9]} 16. Nh3 {[%clk 0:02:31.6]} 16... Qd7
{[%clk 0:03:20]} 17. Ng1 {[%clk 0:02:23.8]} 17... Ng4 {[%clk 0:03:19.1]} 18. Ke1
{[%clk 0:02:18.2]} 18... e3 {[%clk 0:03:15.6]} 19. f4 {[%clk 0:01:53.1]} 19...
g5 {[%clk 0:03:01.2]} 20. hxg5 {[%clk 0:01:43.4]} 20... hxg5 {[%clk 0:02:59.5]}
21. Bxd5 {[%clk 0:01:39.6]} 21... gxf4 {[%clk 0:02:51.6]} 22. Bxe6 {[%clk
0:01:13.9]} 22... fxe6 {[%clk 0:02:45.7]} 23. Ne4 {[%clk 0:01:03.3]} 23... fxg3
{[%clk 0:02:37.4]} 24. Nf3 {[%clk 0:00:58.4]} 24... g2 {[%clk 0:02:25.8]} 25.
Neg5 {[%clk 0:00:28.8]} 25... Bg3# {[%clk 0:02:17.6]} 0-1

[Event "Live Chess"]
[Site "Chess.com"]
[Date "2023.05.21"]
[Round "-"]
[White "jbooth"]
[Black "EdenHazard8"]
[Result "1/2-1/2"]
[WhiteElo "1683"]
[BlackElo "1932"]
[TimeControl "300"]
[EndTime "5:39:52 PDT"]
[Termination "Game drawn by agreement"]

1. e4 {[%clk 0:04:57.8]} 1... c6 {[%clk 0:04:59.9]} 2. d4 {[%clk 0:04:54.7]}
2... d5 {[%clk 0:04:59.8]} 3. Nc3 {[%clk 0:04:52.9]} 3... dxe4 {[%clk
0:04:58.7]} 4. Nxe4 {[%clk 0:04:52.5]} 4... Nf6 {[%clk 0:04:58.6]} 5. Nxf6+
{[%clk 0:04:50.7]} 5... exf6 {[%clk 0:04:58.5]} 6. c3 {[%clk 0:04:47.2]} 6...
Bd6 {[%clk 0:04:58.4]} 7. Bd3 {[%clk 0:04:45.3]} 7... O-O {[%clk 0:04:57.7]} 8.
Ne2 {[%clk 0:04:44.7]} 8... Re8 {[%clk 0:04:57.6]} 9. O-O {[%clk 0:04:43.4]}
9... Nd7 {[%clk 0:04:56.4]} 10. Bf4 {[%clk 0:04:40.5]} 10... Nf8 {[%clk
0:04:53.4]} 11. Bxd6 {[%clk 0:04:38.3]} 11... Qxd6 {[%clk 0:04:53.3]} 12. Qc2
{[%clk 0:04:35.2]} 12... Ng6 {[%clk 0:04:50.7]} 13. Rae1 {[%clk 0:04:30.9]}
13... Be6 {[%clk 0:04:49.8]} 14. b3 {[%clk 0:04:20.6]} 14... Re7 {[%clk
0:04:48.3]} 15. Ng3 {[%clk 0:04:15.9]} 15... Rae8 {[%clk 0:04:44.3]} 16. Ne4
{[%clk 0:04:01.9]} 16... Qc7 {[%clk 0:04:38.4]} 17. Nc5 {[%clk 0:03:56.9]} 17...
Bc8 {[%clk 0:04:32.4]} 18. Rxe7 {[%clk 0:03:51.2]} 18... Qxe7 {[%clk 0:04:26.7]}
19. Qd2 {[%clk 0:03:47.9]} 19... Qd6 {[%clk 0:04:23.9]} 20. Ne4 {[%clk
0:03:45.8]} 20... Qc7 {[%clk 0:04:22.1]} 21. Re1 {[%clk 0:03:41.4]} 21... Be6
{[%clk 0:04:20.2]} 22. Nc5 {[%clk 0:03:37.9]} 22... Nf4 {[%clk 0:04:17]} 23. f3
{[%clk 0:03:25.7]} 23... Nxd3 {[%clk 0:04:13.5]} 24. Nxd3 {[%clk 0:03:22.8]}
24... Kf8 {[%clk 0:04:03.6]} 25. Qf4 {[%clk 0:03:20.6]} 25... Qxf4 {[%clk
0:03:59.7]} 26. Nxf4 {[%clk 0:03:19.1]} 26... Bd7 {[%clk 0:03:59.2]} 27. Rxe8+
{[%clk 0:03:15.1]} 27... Kxe8 {[%clk 0:03:59.1]} 28. Kf2 {[%clk 0:03:11.2]}
28... g6 {[%clk 0:03:57.2]} 29. Ke3 {[%clk 0:03:09.2]} 29... Ke7 {[%clk
0:03:52.7]} 30. h4 {[%clk 0:03:04.3]} 30... h5 {[%clk 0:03:43.1]} 31. Nd3 {[%clk
0:02:58.8]} 31... b6 {[%clk 0:03:35.8]} 32. c4 {[%clk 0:02:50.3]} 32... Bf5
{[%clk 0:03:32.3]} 33. Nb4 {[%clk 0:02:46.4]} 33... Bb1 {[%clk 0:03:30.4]} 34.
a3 {[%clk 0:02:41]} 34... Kd6 {[%clk 0:03:26]} 35. Nd3 {[%clk 0:02:32.8]} 35...
Bxd3 {[%clk 0:03:17.9]} 36. Kxd3 {[%clk 0:02:30.9]} 36... c5 {[%clk 0:03:15.7]}
37. d5 {[%clk 0:02:28.1]} 37... a5 {[%clk 0:03:09]} 38. g4 {[%clk 0:02:12.5]}
38... f5 {[%clk 0:02:39.6]} 39. gxf5 {[%clk 0:02:02.4]} 39... gxf5 {[%clk
0:02:39.5]} 40. Kc3 {[%clk 0:01:48.2]} 40... f4 {[%clk 0:02:29.7]} 41. Kd3
{[%clk 0:01:40.4]} 41... f5 {[%clk 0:02:14.8]} 42. Kc3 {[%clk 0:01:35.8]} 42...
Ke5 {[%clk 0:02:07.9]} 43. b4 {[%clk 0:01:32.8]} 43... a4 {[%clk 0:01:38.7]}
1/2-1/2

[Event "Live Chess"]
[Site "Chess.com"]
[Date "2023.05.21"]
[Round "-"]
[White "Hussamalhaidar"]
[Black "sanjesh_ananda"]
[Result "1-0"]
[WhiteElo "1107"]
[BlackElo "1196"]
[TimeControl "300"]
[EndTime "5:40:03 PDT"]
[Termination "Hussamalhaidar won on time"]

1. b3 {[%clk 0:04:56.9]} 1... e5 {[%clk 0:04:49.1]} 2. Bb2 {[%clk 0:04:54.7]}
2... Nc6 {[%clk 0:04:47]} 3. e3 {[%clk 0:04:52.7]} 3... d5 {[%clk 0:04:43.8]} 4.
Bb5 {[%clk 0:04:51.2]} 4... Bd7 {[%clk 0:04:42.1]} 5. Bxc6 {[%clk 0:04:49.5]}
5... Bxc6 {[%clk 0:04:40.2]} 6. Bxe5 {[%clk 0:04:48.9]} 6... Qg5 {[%clk
0:04:25.6]} 7. Nf3 {[%clk 0:04:44.1]} 7... Qxg2 {[%clk 0:04:21.3]} 8. Rg1 {[%clk
0:04:41.5]} 8... Qh3 {[%clk 0:04:17.5]} 9. Rxg7 {[%clk 0:04:28.7]} 9... f6
{[%clk 0:04:06.5]} 10. Rxc7 {[%clk 0:03:57.1]} 10... fxe5 {[%clk 0:04:01.4]} 11.
Nxe5 {[%clk 0:03:53.6]} 11... Bd6 {[%clk 0:03:35.6]} 12. Rxc6 {[%clk 0:03:06]}
12... bxc6 {[%clk 0:03:33.1]} 13. Nxc6 {[%clk 0:03:03]} 13... Qxh2 {[%clk
0:03:20.6]} 14. Qf3 {[%clk 0:02:53.8]} 14... Qg1+ {[%clk 0:02:58.9]} 15. Ke2
{[%clk 0:02:51]} 15... Qg7 {[%clk 0:02:56.4]} 16. Qh5+ {[%clk 0:02:42.4]} 16...
Qg6 {[%clk 0:02:46.9]} 17. Qxd5 {[%clk 0:02:39.3]} 17... Ne7 {[%clk 0:02:39.3]}
18. Nxe7 {[%clk 0:02:35]} 18... Kxe7 {[%clk 0:02:29.5]} 19. Qb7+ {[%clk
0:02:28.4]} 19... Ke6 {[%clk 0:02:21]} 20. Nc3 {[%clk 0:02:25.7]} 20... Qg4+
{[%clk 0:01:36.5]} 21. f3 {[%clk 0:02:14.3]} 21... Qg2+ {[%clk 0:01:32.5]} 22.
Kd3 {[%clk 0:02:09.7]} 22... Qg6+ {[%clk 0:01:24.2]} 23. Ne4 {[%clk 0:02:03.7]}
23... Rab8 {[%clk 0:01:07.4]} 24. Qxa7 {[%clk 0:01:50.6]} 24... Rhd8 {[%clk
0:01:03.9]} 25. Ke2 {[%clk 0:01:45]} 25... Qg2+ {[%clk 0:00:59]} 26. Nf2 {[%clk
0:01:43.1]} 26... Bg3 {[%clk 0:00:51.3]} 27. Qa6+ {[%clk 0:01:35.3]} 27... Rd6
{[%clk 0:00:45.3]} 28. Qc4+ {[%clk 0:01:31.8]} 28... Ke7 {[%clk 0:00:29.9]} 29.
Qc7+ {[%clk 0:01:28.9]} 29... Rd7 {[%clk 0:00:27.4]} 30. Qc5+ {[%clk 0:01:24.7]}
30... Kd8 {[%clk 0:00:19.5]} 31. Qf8+ {[%clk 0:01:22.3]} 31... Kc7 {[%clk
0:00:17.5]} 32. Qc5+ {[%clk 0:01:20.7]} 32... Kb7 {[%clk 0:00:12.7]} 33. Qb5+
{[%clk 0:01:19.3]} 33... Kc8 {[%clk 0:00:11.5]} 34. Qc5+ {[%clk 0:01:17.4]}
34... Rc7 {[%clk 0:00:09.2]} 35. Qf8+ {[%clk 0:01:16]} 35... Kb7 {[%clk
0:00:08.2]} 36. Qb4+ {[%clk 0:01:14.3]} 36... Ka8 {[%clk 0:00:06.6]} 37. Qa5+
{[%clk 0:01:12.7]} 37... Ra7 {[%clk 0:00:05.1]} 38. Qd5+ {[%clk 0:01:10.7]}
38... Rbb7 {[%clk 0:00:03.3]} 39. Qd8+ {[%clk 0:01:08.7]} 39... Bb8 {[%clk
0:00:01.5]} 40. Rh1 {[%clk 0:00:54.4]} 1-0

[Event "Live Chess"]
[Site "Chess.com"]
[Date "2023.05.21"]
[Round "-"]
[White "Biranidun"]
[Black "grillage"]
[Result "1-0"]
[WhiteElo "2524"]
[BlackElo "1796"]
[TimeControl "300"]
[EndTime "5:40:11 PDT"]
[Termination "Biranidun won by resignation"]

1. e4 {[%clk 0:04:59.1]} 1... d5 {[%clk 0:04:58.2]} 2. exd5 {[%clk 0:04:57.8]}
2... Qxd5 {[%clk 0:04:55.8]} 3. Nc3 {[%clk 0:04:56.9]} 3... Qd8 {[%clk
0:04:54.8]} 4. d4 {[%clk 0:04:56.1]} 4... Nf6 {[%clk 0:04:53.8]} 5. Nf3 {[%clk
0:04:55.5]} 5... Bg4 {[%clk 0:04:52.9]} 6. h3 {[%clk 0:04:54.4]} 6... Bxf3
{[%clk 0:04:52]} 7. Qxf3 {[%clk 0:04:54.3]} 7... c6 {[%clk 0:04:51.2]} 8. g4
{[%clk 0:04:53.3]} 8... e6 {[%clk 0:04:48]} 9. g5 {[%clk 0:04:52.4]} 9... Nd5
{[%clk 0:04:44.8]} 10. Ne4 {[%clk 0:04:51.4]} 10... Be7 {[%clk 0:04:20.9]} 11.
a3 {[%clk 0:04:48.3]} 11... Nd7 {[%clk 0:04:15]} 12. h4 {[%clk 0:04:46.7]} 12...
Qc7 {[%clk 0:04:04.1]} 13. c4 {[%clk 0:04:44.9]} 13... Qa5+ {[%clk 0:03:57.2]}
14. Bd2 {[%clk 0:04:42.2]} 14... Bb4 {[%clk 0:03:46.5]} 15. cxd5 {[%clk
0:04:40.5]} 15... Bxd2+ {[%clk 0:03:34.6]} 16. Nxd2 {[%clk 0:04:40.4]} 16...
cxd5 {[%clk 0:03:30.4]} 17. Qc3 {[%clk 0:04:39.3]} 17... Qb6 {[%clk 0:03:26.1]}
18. Qb4 {[%clk 0:04:35.8]} 18... Qc7 {[%clk 0:03:22.7]} 19. Bb5 {[%clk
0:04:33.5]} 19... a6 {[%clk 0:03:07.2]} 20. Bxd7+ {[%clk 0:04:32.3]} 20... Qxd7
{[%clk 0:03:06.7]} 21. Rc1 {[%clk 0:04:30.7]} 21... a5 {[%clk 0:02:58.9]} 22.
Qc5 {[%clk 0:04:29.3]} 22... b6 {[%clk 0:02:56.3]} 23. Qc6 {[%clk 0:04:26.9]}
1-0

[Event "Live Chess"]
[Site "Chess.com"]
[Date "2023.05.21"]
[Round "-"]
[White "Greenbecker"]
[Black "mattihelenius2"]
[Result "1-0"]
[WhiteElo "1684"]
[BlackElo "491"]
[TimeControl "300"]
[EndTime "5:40:12 PDT"]
[Termination "Greenbecker won by resignation"]

1. e4 {[%clk 0:04:58.6]} 1... Nf6 {[%clk 0:04:57.3]} 2. Nc3 {[%clk 0:04:56.6]}
2... e5 {[%clk 0:04:55]} 3. Nf3 {[%clk 0:04:55.2]} 3... Bb4 {[%clk 0:04:50]} 4.
d3 {[%clk 0:04:53.6]} 4... Nc6 {[%clk 0:04:47.1]} 5. Bg5 {[%clk 0:04:52.4]} 5...
d6 {[%clk 0:04:43.7]} 6. a3 {[%clk 0:04:51.2]} 6... Qe7 {[%clk 0:04:42]} 7. axb4
{[%clk 0:04:49.6]} 7... h6 {[%clk 0:04:41.5]} 8. Nd5 {[%clk 0:04:48.1]} 8...
Nxb4 {[%clk 0:04:40.2]} 9. Nxe7 {[%clk 0:04:46.7]} 9... Kd8 {[%clk 0:04:36.5]}
10. Bxf6 {[%clk 0:04:44.4]} 10... Ke8 {[%clk 0:04:35.8]} 11. Nd5 {[%clk
0:04:40.3]} 11... Kd7 {[%clk 0:04:33.8]} 12. Nxb4 {[%clk 0:04:38.6]} 1-0

[Event "Live Chess"]
[Site "Chess.com"]
[Date "2023.05.21"]
[Round "-"]
[White "Ed_Knox"]
[Black "WelshTiger"]
[Result "0-1"]
[WhiteElo "1453"]
[BlackElo "2300"]
[TimeControl "300"]
[EndTime "5:40:13 PDT"]
[Termination "WelshTiger won on time"]

1. d4 {[%clk 0:04:53]} 1... d5 {[%clk 0:04:58.1]} 2. Bf4 {[%clk 0:04:52.2]} 2...
e6 {[%clk 0:04:54.3]} 3. e3 {[%clk 0:04:50.6]} 3... Bd6 {[%clk 0:04:53.5]} 4.
Bg3 {[%clk 0:04:47.4]} 4... Nf6 {[%clk 0:04:51]} 5. Nd2 {[%clk 0:04:43.8]} 5...
c5 {[%clk 0:04:48.7]} 6. c3 {[%clk 0:04:42.6]} 6... Qe7 {[%clk 0:04:47.8]} 7.
Bxd6 {[%clk 0:04:39.7]} 7... Qxd6 {[%clk 0:04:46.5]} 8. Ngf3 {[%clk 0:04:39]}
8... Nc6 {[%clk 0:04:45.4]} 9. Bb5 {[%clk 0:04:36.2]} 9... O-O {[%clk
0:04:43.4]} 10. Bxc6 {[%clk 0:04:33.5]} 10... bxc6 {[%clk 0:04:42]} 11. O-O
{[%clk 0:04:32.6]} 11... cxd4 {[%clk 0:04:40.9]} 12. exd4 {[%clk 0:04:29.7]}
12... c5 {[%clk 0:04:40.8]} 13. dxc5 {[%clk 0:04:27.7]} 13... Qxc5 {[%clk
0:04:39.8]} 14. Re1 {[%clk 0:04:22.9]} 14... Rb8 {[%clk 0:04:38.5]} 15. Nb3
{[%clk 0:04:17.9]} 15... Qb6 {[%clk 0:04:35.9]} 16. Ne5 {[%clk 0:04:10.4]} 16...
a5 {[%clk 0:04:32.7]} 17. Nd3 {[%clk 0:04:04.4]} 17... Nd7 {[%clk 0:04:28.7]}
18. Qg4 {[%clk 0:03:34.9]} 18... Ba6 {[%clk 0:04:20.8]} 19. Re3 {[%clk
0:03:30.3]} 19... Nf6 {[%clk 0:04:19]} 20. Qd4 {[%clk 0:03:21]} 20... Qxd4
{[%clk 0:04:16.9]} 21. cxd4 {[%clk 0:03:13]} 21... Bxd3 {[%clk 0:04:06.9]} 22.
Rxd3 {[%clk 0:03:11.3]} 22... a4 {[%clk 0:04:01.9]} 23. Nc5 {[%clk 0:03:01.5]}
23... Rxb2 {[%clk 0:03:59.6]} 24. Nxa4 {[%clk 0:03:00.8]} 24... Rc2 {[%clk
0:03:58.4]} 25. Nc5 {[%clk 0:02:57.4]} 25... Ra8 {[%clk 0:03:53.1]} 26. a4
{[%clk 0:02:54.5]} 26... Rc4 {[%clk 0:03:46.6]} 27. Rb1 {[%clk 0:02:46.7]} 27...
g6 {[%clk 0:03:38.6]} 28. a5 {[%clk 0:02:45.2]} 28... Rxa5 {[%clk 0:03:33.5]}
29. g3 {[%clk 0:02:25.2]} 29... Ne4 {[%clk 0:03:30.1]} 30. Nd7 {[%clk
0:02:13.7]} 30... Kg7 {[%clk 0:03:25.8]} 31. Ne5 {[%clk 0:02:11.1]} 31... Rca4
{[%clk 0:03:20.7]} 32. Rb7 {[%clk 0:02:00.6]} 32... Ra7 {[%clk 0:03:19.5]} 33.
Rb2 {[%clk 0:01:41.9]} 33... Nd6 {[%clk 0:03:14.5]} 34. Nc6 {[%clk 0:01:30.9]}
34... Rc7 {[%clk 0:03:12.8]} 35. Rb6 {[%clk 0:01:15.1]} 35... Nf5 {[%clk
0:03:06.9]} 36. h4 {[%clk 0:00:35]} 36... Rc4 {[%clk 0:03:04.9]} 37. Ne5 {[%clk
0:00:16.2]} 37... Rxd4 {[%clk 0:03:02]} 38. Rxd4 {[%clk 0:00:13.3]} 38... Nxd4
{[%clk 0:03:00.7]} 39. Nf3 {[%clk 0:00:11]} 39... Nxf3+ {[%clk 0:02:59.2]} 0-1

[Event "Live Chess"]
[Site "Chess.com"]
[Date "2023.05.21"]
[Round "-"]
[White "zdanevych"]
[Black "Olisingapore"]
[Result "0-1"]
[WhiteElo "1517"]
[BlackElo "1773"]
[TimeControl "300"]
[EndTime "5:40:14 PDT"]
[Termination "Olisingapore won by resignation"]

1. d4 {[%clk 0:04:59.1]} 1... Nf6 {[%clk 0:04:58]} 2. c4 {[%clk 0:04:56.9]} 2...
e6 {[%clk 0:04:56.2]} 3. Nc3 {[%clk 0:04:56.5]} 3... Bb4 {[%clk 0:04:55.5]} 4.
a3 {[%clk 0:04:56]} 4... Bxc3+ {[%clk 0:04:53.8]} 5. bxc3 {[%clk 0:04:55.9]}
5... c5 {[%clk 0:04:51.8]} 6. Nf3 {[%clk 0:04:54]} 6... Nc6 {[%clk 0:04:49.4]}
7. Bg5 {[%clk 0:04:50.7]} 7... d6 {[%clk 0:04:41.7]} 8. e3 {[%clk 0:04:48.4]}
8... b6 {[%clk 0:04:40.4]} 9. d5 {[%clk 0:04:41.2]} 9... exd5 {[%clk 0:04:31.9]}
10. cxd5 {[%clk 0:04:41.1]} 10... Ne7 {[%clk 0:04:28.1]} 11. c4 {[%clk
0:04:35.6]} 11... Ng6 {[%clk 0:04:22.5]} 12. h3 {[%clk 0:04:28.5]} 12... h6
{[%clk 0:04:20.5]} 13. Bxf6 {[%clk 0:04:26.1]} 13... Qxf6 {[%clk 0:04:14.4]} 14.
Bd3 {[%clk 0:04:25.6]} 14... O-O {[%clk 0:04:11]} 15. O-O {[%clk 0:04:25.1]}
15... Ne5 {[%clk 0:04:05.9]} 16. Nxe5 {[%clk 0:04:21.3]} 16... Qxe5 {[%clk
0:04:05.3]} 17. Rc1 {[%clk 0:04:11.7]} 17... Qg5 {[%clk 0:04:02.1]} 18. Kh1
{[%clk 0:04:07.1]} 18... Re8 {[%clk 0:03:36.6]} 19. Bb1 {[%clk 0:04:04.9]} 19...
f5 {[%clk 0:03:15.6]} 20. Qb3 {[%clk 0:03:53.7]} 20... Bd7 {[%clk 0:03:09.4]}
21. Qd3 {[%clk 0:03:39.3]} 21... Re7 {[%clk 0:03:02]} 22. Rc2 {[%clk 0:03:29.8]}
22... Rae8 {[%clk 0:02:53.2]} 23. Re2 {[%clk 0:03:27.9]} 23... Qh5 {[%clk
0:02:48.9]} 24. Rfe1 {[%clk 0:03:24]} 24... g5 {[%clk 0:02:44.6]} 25. Bc2 {[%clk
0:03:16.8]} 25... g4 {[%clk 0:02:41.8]} 26. Kh2 {[%clk 0:03:03.8]} 26... gxh3
{[%clk 0:02:37.4]} 27. gxh3 {[%clk 0:03:03.4]} 27... f4 {[%clk 0:02:33.1]} 28.
Qg6+ {[%clk 0:02:59]} 28... Qxg6 {[%clk 0:02:23.7]} 29. Bxg6 {[%clk 0:02:58.9]}
29... Rf8 {[%clk 0:02:18.3]} 30. exf4 {[%clk 0:02:53.7]} 30... Rg7 {[%clk
0:01:58.3]} 31. f5 {[%clk 0:02:38.6]} 31... Bxf5 {[%clk 0:01:56.1]} 32. Bxf5
{[%clk 0:02:37.9]} 32... Rxf5 {[%clk 0:01:55.5]} 33. Re8+ {[%clk 0:02:36.8]}
33... Rf8 {[%clk 0:01:53.4]} 34. R1e7 {[%clk 0:02:30]} 34... h5 {[%clk
0:01:43.7]} 35. Rxf8+ {[%clk 0:02:21.5]} 35... Kxf8 {[%clk 0:01:37.2]} 36. Rxg7
{[%clk 0:02:20.9]} 36... Kxg7 {[%clk 0:01:37.1]} 37. Kg3 {[%clk 0:02:20.6]}
37... Kf6 {[%clk 0:01:31.1]} 38. Kf4 {[%clk 0:02:17.9]} 38... a6 {[%clk
0:01:26.7]} 39. h4 {[%clk 0:02:15.3]} 39... b5 {[%clk 0:01:23.6]} 40. cxb5
{[%clk 0:02:12.3]} 40... axb5 {[%clk 0:01:23.5]} 41. Ke3 {[%clk 0:02:11.8]}
41... Ke5 {[%clk 0:01:20]} 42. f4+ {[%clk 0:02:10.1]} 42... Kxd5 {[%clk
0:01:14.7]} 43. Kf3 {[%clk 0:02:03.6]} 43... c4 {[%clk 0:01:04.4]} 44. f5 {[%clk
0:02:02.5]} 44... Ke5 {[%clk 0:01:03.4]} 0-1

[Event "Live Chess"]
[Site "Chess.com"]
[Date "2023.05.21"]
[Round "-"]
[White "Ferrarifan27"]
[Black "JoshMcK"]
[Result "1-0"]
[WhiteElo "2058"]
[BlackElo "1572"]
[TimeControl "300"]
[EndTime "5:40:28 PDT"]
[Termination "Ferrarifan27 won by resignation"]

1. e4 {[%clk 0:04:58.5]} 1... d6 {[%clk 0:04:57.6]} 2. d4 {[%clk 0:04:57.2]}
2... Nf6 {[%clk 0:04:56.6]} 3. Nc3 {[%clk 0:04:54.8]} 3... g6 {[%clk 0:04:55.5]}
4. Nf3 {[%clk 0:04:51.4]} 4... Bg7 {[%clk 0:04:54.6]} 5. Bg5 {[%clk 0:04:47.7]}
5... O-O {[%clk 0:04:53.8]} 6. Qd2 {[%clk 0:04:46.6]} 6... Ng4 {[%clk 0:04:48]}
7. h3 {[%clk 0:04:44.4]} 7... Nf6 {[%clk 0:04:47.1]} 8. Bh6 {[%clk 0:04:40.1]}
8... Nc6 {[%clk 0:04:45.3]} 9. Bb5 {[%clk 0:04:27.4]} 9... Nb4 {[%clk
0:04:38.1]} 10. a3 {[%clk 0:04:20.3]} 10... Bxh6 {[%clk 0:04:30.4]} 11. Qxh6
{[%clk 0:04:18.5]} 11... Nxc2+ {[%clk 0:04:28.4]} 12. Kd2 {[%clk 0:04:16.5]}
12... Nxa1 {[%clk 0:04:27.5]} 13. Rxa1 {[%clk 0:04:15.2]} 13... Bd7 {[%clk
0:04:19.4]} 14. Bd3 {[%clk 0:04:10.8]} 14... e5 {[%clk 0:04:14.8]} 15. d5 {[%clk
0:04:04.3]} 15... c6 {[%clk 0:04:09.1]} 16. dxc6 {[%clk 0:04:02.3]} 16... Bxc6
{[%clk 0:04:07.3]} 17. Ke2 {[%clk 0:04:01.1]} 17... Qb6 {[%clk 0:03:59.7]} 18.
b4 {[%clk 0:03:54.7]} 18... a6 {[%clk 0:03:31.4]} 19. Qg5 {[%clk 0:03:49.6]}
19... Qd8 {[%clk 0:03:23.3]} 20. h4 {[%clk 0:03:41.9]} 20... Nh5 {[%clk
0:03:19.7]} 21. Qh6 {[%clk 0:03:37.9]} 21... f5 {[%clk 0:02:58.9]} 22. exf5
{[%clk 0:03:34.6]} 22... Rxf5 {[%clk 0:02:52.1]} 23. Bxf5 {[%clk 0:03:32.4]}
23... Nf4+ {[%clk 0:02:48.8]} 24. Kf1 {[%clk 0:03:29.8]} 24... gxf5 {[%clk
0:02:38.1]} 25. Rd1 {[%clk 0:03:05.8]} 25... Qe8 {[%clk 0:02:24.1]} 26. Qxd6
{[%clk 0:02:54.5]} 26... Bb5+ {[%clk 0:02:11.2]} 27. Kg1 {[%clk 0:02:48.1]}
27... Ne2+ {[%clk 0:02:05.2]} 28. Nxe2 {[%clk 0:02:46]} 28... Bxe2 {[%clk
0:02:04.1]} 29. Re1 {[%clk 0:02:37.7]} 29... Bxf3 {[%clk 0:01:59.6]} 30. Rxe5
{[%clk 0:02:33.2]} 30... Qg6 {[%clk 0:01:56.5]} 31. Qxg6+ {[%clk 0:02:30.8]}
31... hxg6 {[%clk 0:01:56.4]} 32. gxf3 {[%clk 0:02:30]} 32... Rc8 {[%clk
0:01:51.7]} 33. Re7 {[%clk 0:02:27.8]} 33... b5 {[%clk 0:01:44.5]} 34. Re6
{[%clk 0:02:26.5]} 34... Kf7 {[%clk 0:01:42]} 35. Rxa6 {[%clk 0:02:24.7]} 35...
Rc3 {[%clk 0:01:41.2]} 36. Kg2 {[%clk 0:02:23]} 36... Rb3 {[%clk 0:01:35.2]} 37.
Kg3 {[%clk 0:02:20.9]} 37... Kg7 {[%clk 0:01:33.5]} 38. Rb6 {[%clk 0:02:19]}
38... Rxa3 {[%clk 0:01:31.7]} 39. Rxb5 {[%clk 0:02:18.2]} 39... Rb3 {[%clk
0:01:30.6]} 40. Rb8 {[%clk 0:02:07.2]} 40... Kf6 {[%clk 0:01:27.4]} 41. b5
{[%clk 0:02:06.3]} 41... Ke5 {[%clk 0:01:24.3]} 42. b6 {[%clk 0:02:04]} 42...
f4+ {[%clk 0:01:23]} 43. Kg4 {[%clk 0:02:00.1]} 43... Kd6 {[%clk 0:01:20.9]} 44.
Kxf4 {[%clk 0:01:55.1]} 44... Kc6 {[%clk 0:01:20]} 45. Rg8 {[%clk 0:01:50.4]}
45... Kxb6 {[%clk 0:01:10.5]} 46. Rb8+ {[%clk 0:01:48]} 1-0

[Event "Live Chess"]
[Site "Chess.com"]
[Date "2023.05.21"]
[Round "-"]
[White "MJMykh"]
[Black "whatnot126"]
[Result "0-1"]
[WhiteElo "1152"]
[BlackElo "2058"]
[TimeControl "300"]
[EndTime "5:40:28 PDT"]
[Termination "whatnot126 won by resignation"]

1. e4 {[%clk 0:04:58.1]} 1... d6 {[%clk 0:04:57.1]} 2. d4 {[%clk 0:04:56.3]}
2... Nf6 {[%clk 0:04:56.3]} 3. Nc3 {[%clk 0:04:54.7]} 3... g6 {[%clk 0:04:55.9]}
4. Nf3 {[%clk 0:04:53.6]} 4... Bg7 {[%clk 0:04:55.5]} 5. Bc4 {[%clk 0:04:52.6]}
5... O-O {[%clk 0:04:53.9]} 6. Ng5 {[%clk 0:04:52.1]} 6... c6 {[%clk 0:04:46]}
7. Nxf7 {[%clk 0:04:50.7]} 7... Rxf7 {[%clk 0:04:45.1]} 8. Bxf7+ {[%clk
0:04:50.4]} 8... Kxf7 {[%clk 0:04:44.2]} 9. O-O {[%clk 0:04:50.2]} 9... Nbd7
{[%clk 0:04:31.5]} 10. Bg5 {[%clk 0:04:49.3]} 10... h6 {[%clk 0:04:29.7]} 11.
Bxf6 {[%clk 0:04:48.2]} 11... exf6 {[%clk 0:04:29.6]} 12. Qf3 {[%clk 0:04:46.7]}
12... Qb6 {[%clk 0:04:05.4]} 13. Rab1 {[%clk 0:04:38.6]} 13... Qxd4 {[%clk
0:04:02]} 14. Qd3 {[%clk 0:04:36.5]} 14... Qxd3 {[%clk 0:04:01.1]} 15. cxd3
{[%clk 0:04:36]} 15... Nc5 {[%clk 0:03:58.8]} 16. Rfd1 {[%clk 0:04:33.9]} 16...
f5 {[%clk 0:03:54.5]} 17. exf5 {[%clk 0:04:30.9]} 17... Bxf5 {[%clk 0:03:54.4]}
18. h3 {[%clk 0:04:28.6]} 18... Bxd3 {[%clk 0:03:51]} 19. Rbc1 {[%clk
0:04:25.9]} 19... Rd8 {[%clk 0:03:41.6]} 20. b4 {[%clk 0:04:21.7]} 20... Ne4
{[%clk 0:03:29.5]} 21. Nxe4 {[%clk 0:04:19.6]} 21... Bxe4 {[%clk 0:03:28.1]} 22.
f3 {[%clk 0:04:18.6]} 22... Bf5 {[%clk 0:03:24.7]} 23. Rd2 {[%clk 0:04:14.6]}
23... d5 {[%clk 0:03:17]} 24. Re2 {[%clk 0:04:10.6]} 24... d4 {[%clk 0:03:11.1]}
25. Rce1 {[%clk 0:04:08.9]} 25... d3 {[%clk 0:03:09.3]} 26. Re7+ {[%clk
0:04:07.2]} 26... Kg8 {[%clk 0:02:56]} 27. Rxb7 {[%clk 0:03:57.8]} 27... d2
{[%clk 0:02:55.3]} 28. Rd1 {[%clk 0:03:56.5]} 28... Bc2 {[%clk 0:02:53.2]} 29.
Rxd2 {[%clk 0:03:53.3]} 29... Rxd2 {[%clk 0:02:53.1]} 30. Rxa7 {[%clk
0:03:51.6]} 30... Bd4+ {[%clk 0:02:52.8]} 31. Kh2 {[%clk 0:03:49.8]} 31... Bxa7
{[%clk 0:02:52.7]} 0-1